[Event "*** Titled Tuesday Blitz"]
[Site "Chess.com"]
[Date "2019.07.02"]
[Round "10"]
[White "Squirlolz"]
[Black "Kubas1010"]
[Result "0-1"]
[WhiteElo "2500"]
[BlackElo "2624"]
[TimeControl "180+2"]
[EndTime "15:13:16 PDT"]
[Termination "Kubas1010 won by resignation"]

1. Nf3 {[%clk 0:03:01.9]} 1... d5 {[%clk 0:02:58.5]} 2. c4 {[%clk 0:02:59.3]}
2... e6 {[%clk 0:02:58.8]} 3. e3 {[%clk 0:02:58.4]} 3... Nf6 {[%clk 0:02:55]} 4.
b3 {[%clk 0:02:59.2]} 4... Be7 {[%clk 0:02:56.5]} 5. Bb2 {[%clk 0:03:00.4]} 5...
O-O {[%clk 0:02:58.2]} 6. Nc3 {[%clk 0:03:00]} 6... c5 {[%clk 0:02:57.9]} 7.
cxd5 {[%clk 0:03:01.1]} 7... exd5 {[%clk 0:02:58.9]} 8. d4 {[%clk 0:03:01.9]}
8... Nc6 {[%clk 0:02:59.4]} 9. Be2 {[%clk 0:03:00.3]} 9... Bg4 {[%clk 0:02:58]}
10. dxc5 {[%clk 0:02:56.8]} 10... Bxc5 {[%clk 0:02:57.8]} 11. O-O {[%clk
0:02:55.9]} 11... Qe7 {[%clk 0:02:51.4]} 12. Na4 {[%clk 0:02:43.3]} 12... Ba3
{[%clk 0:02:44.1]} 13. h3 {[%clk 0:02:11.4]} 13... Bxb2 {[%clk 0:02:40.6]} 14.
Nxb2 {[%clk 0:02:11.4]} 14... Bxf3 {[%clk 0:02:41]} 15. Bxf3 {[%clk 0:02:12.5]}
15... Rfd8 {[%clk 0:02:26]} 16. Rc1 {[%clk 0:01:48.4]} 16... Rac8 {[%clk
0:02:19.7]} 17. Nd3 {[%clk 0:01:03.6]} 17... Ne4 {[%clk 0:02:20.2]} 18. Re1
{[%clk 0:00:40.6]} 18... Qf6 {[%clk 0:02:13]} 19. Nf4 {[%clk 0:00:36.1]} 19...
Nc3 {[%clk 0:01:50]} 20. Qd2 {[%clk 0:00:35.4]} 20... d4 {[%clk 0:01:46]} 21.
exd4 {[%clk 0:00:27.9]} 21... Nxd4 {[%clk 0:01:41.2]} 22. Rxc3 {[%clk 0:00:21]}
22... Nxf3+ {[%clk 0:01:40.6]} 23. gxf3 {[%clk 0:00:21]} 23... Qxc3 {[%clk
0:01:38.6]} 24. Qxc3 {[%clk 0:00:08.8]} 24... Rxc3 {[%clk 0:01:38.8]} 25. Re7
{[%clk 0:00:10.7]} 25... Rb8 {[%clk 0:01:22.3]} 26. Kg2 {[%clk 0:00:10.7]} 26...
Rc2 {[%clk 0:01:17.9]} 27. a4 {[%clk 0:00:09.8]} 27... Rc3 {[%clk 0:01:18.6]}
28. b4 {[%clk 0:00:10.4]} 28... Rc4 {[%clk 0:01:12.1]} 29. Nd3 {[%clk 0:00:10]}
29... a5 {[%clk 0:01:06.1]} 30. bxa5 {[%clk 0:00:10.1]} 30... Rxa4 {[%clk
0:01:06.9]} 31. Nc5 {[%clk 0:00:11.4]} 31... Rxa5 {[%clk 0:01:06.7]} 32. Nxb7
{[%clk 0:00:10.3]} 32... Ra7 {[%clk 0:01:06]} 33. Nd8 {[%clk 0:00:04.5]} 33...
Rxe7 {[%clk 0:01:06.1]} 34. Nc6 {[%clk 0:00:04.9]} 34... Ree8 {[%clk 0:01:07.2]}
0-1

[Event "*** Titled Tuesday Blitz"]
[Site "Chess.com"]
[Date "2019.07.02"]
[Round "10"]
[White "nubair1198"]
[Black "PIwan"]
[Result "1-0"]
[WhiteElo "2643"]
[BlackElo "2472"]
[TimeControl "180+2"]
[EndTime "15:13:28 PDT"]
[Termination "nubair1198 won by resignation"]

1. Nf3 {[%clk 0:03:01.9]} 1... d5 {[%clk 0:03:00.3]} 2. d4 {[%clk 0:02:58.3]}
2... Nf6 {[%clk 0:03:00.7]} 3. c4 {[%clk 0:02:59.8]} 3... dxc4 {[%clk
0:03:02.1]} 4. e3 {[%clk 0:03:00.4]} 4... b5 {[%clk 0:03:03.6]} 5. a4 {[%clk
0:03:00.3]} 5... b4 {[%clk 0:03:04.9]} 6. Bxc4 {[%clk 0:03:00.8]} 6... e6 {[%clk
0:03:06.6]} 7. O-O {[%clk 0:03:00.2]} 7... Bb7 {[%clk 0:03:08.2]} 8. a5 {[%clk
0:02:59.3]} 8... a6 {[%clk 0:03:07.7]} 9. Qe2 {[%clk 0:02:58.5]} 9... Nbd7
{[%clk 0:03:07.8]} 10. Rd1 {[%clk 0:02:59.6]} 10... c5 {[%clk 0:03:06.9]} 11. b3
{[%clk 0:02:59.1]} 11... Qc7 {[%clk 0:03:05.7]} 12. Bb2 {[%clk 0:03:00]} 12...
Be7 {[%clk 0:02:58.9]} 13. Nbd2 {[%clk 0:03:00.6]} 13... O-O {[%clk 0:02:58.3]}
14. h3 {[%clk 0:02:58.9]} 14... Nd5 {[%clk 0:02:54.6]} 15. Ne4 {[%clk 0:02:56]}
15... cxd4 {[%clk 0:02:39.5]} 16. Rxd4 {[%clk 0:02:53.9]} 16... Nc5 {[%clk
0:02:13.1]} 17. Nxc5 {[%clk 0:02:34.5]} 17... Bxc5 {[%clk 0:02:15]} 18. Rg4
{[%clk 0:02:31.1]} 18... Nc3 {[%clk 0:02:16]} 19. Qc2 {[%clk 0:02:26.3]} 19...
f5 {[%clk 0:02:13.1]} 20. Bxe6+ {[%clk 0:02:26.6]} 20... Kh8 {[%clk 0:02:12.1]}
21. Bxf5 {[%clk 0:02:27.3]} 21... Bd6 {[%clk 0:01:39.1]} 22. Bxh7 {[%clk
0:02:21.2]} 22... Rxf3 {[%clk 0:01:39.6]} 23. gxf3 {[%clk 0:02:23.1]} 23... Bxf3
{[%clk 0:01:40.8]} 24. Rc4 {[%clk 0:02:08.1]} 24... Bh2+ {[%clk 0:01:33.2]} 25.
Kf1 {[%clk 0:02:08.5]} 25... Qd7 {[%clk 0:00:58.8]} 26. Bf5 {[%clk 0:02:06]}
26... Qd5 {[%clk 0:00:37.2]} 27. Rh4+ {[%clk 0:01:37.6]} 27... Kg8 {[%clk
0:00:35.5]} 28. Bh7+ {[%clk 0:01:33.4]} 28... Kf8 {[%clk 0:00:25.2]} 29. Qf5+
{[%clk 0:01:26.8]} 29... Qxf5 {[%clk 0:00:25.8]} 30. Bxf5 {[%clk 0:01:28.7]}
30... Kf7 {[%clk 0:00:26.8]} 31. Rxb4 {[%clk 0:01:28.3]} 31... Nd1 {[%clk
0:00:17.4]} 32. Rxd1 {[%clk 0:01:26.5]} 32... Bxd1 {[%clk 0:00:17.9]} 33. Rb7+
{[%clk 0:01:28.1]} 33... Ke8 {[%clk 0:00:18.5]} 34. f4 {[%clk 0:01:24]} 34...
Rd8 {[%clk 0:00:17.6]} 35. Bg6+ {[%clk 0:01:24.8]} 35... Kf8 {[%clk 0:00:18.2]}
36. Bxg7+ {[%clk 0:01:25.6]} 36... Kg8 {[%clk 0:00:18.4]} 37. Bd4 {[%clk
0:01:27.2]} 37... Bxb3 {[%clk 0:00:18.9]} 38. Bh7+ {[%clk 0:01:24.6]} 38... Kf8
{[%clk 0:00:19.2]} 39. Bc5+ {[%clk 0:01:26.2]} 39... Ke8 {[%clk 0:00:17.8]} 40.
Bg6+ {[%clk 0:01:27.7]} 1-0

[Event "*** Titled Tuesday Blitz"]
[Site "Chess.com"]
[Date "2019.07.02"]
[Round "10"]
[White "sergeikim"]
[Black "CMS13"]
[Result "1-0"]
[WhiteElo "2465"]
[BlackElo "2013"]
[TimeControl "180+2"]
[EndTime "15:13:31 PDT"]
[Termination "sergeikim won by resignation"]

1. d4 {[%clk 0:03:01.9]} 1... d5 {[%clk 0:03:01]} 2. c4 {[%clk 0:03:02.7]} 2...
e6 {[%clk 0:03:02.2]} 3. Nc3 {[%clk 0:03:03.6]} 3... Bb4 {[%clk 0:03:02.6]} 4.
Nf3 {[%clk 0:03:02.6]} 4... Nf6 {[%clk 0:03:03.4]} 5. Bg5 {[%clk 0:03:03.2]}
5... h6 {[%clk 0:03:04.2]} 6. Bh4 {[%clk 0:03:03.5]} 6... g5 {[%clk 0:03:05.4]}
7. Bg3 {[%clk 0:03:04]} 7... Ne4 {[%clk 0:03:06.8]} 8. Qd3 {[%clk 0:03:02.1]}
8... Nc6 {[%clk 0:03:05.6]} 9. a3 {[%clk 0:02:58.5]} 9... Bxc3+ {[%clk
0:03:06.5]} 10. bxc3 {[%clk 0:02:59.6]} 10... h5 {[%clk 0:02:58]} 11. h4 {[%clk
0:02:55.4]} 11... g4 {[%clk 0:02:57.4]} 12. Ng5 {[%clk 0:02:53.7]} 12... Nxg5
{[%clk 0:02:54.4]} 13. hxg5 {[%clk 0:02:54.1]} 13... Qxg5 {[%clk 0:02:54.6]} 14.
Bxc7 {[%clk 0:02:49.7]} 14... Bd7 {[%clk 0:02:52.2]} 15. e4 {[%clk 0:02:41.3]}
15... dxe4 {[%clk 0:02:41.5]} 16. Qxe4 {[%clk 0:02:41.4]} 16... Rc8 {[%clk
0:02:41.6]} 17. Bd6 {[%clk 0:02:36.9]} 17... Qf5 {[%clk 0:02:35.4]} 18. Qxf5
{[%clk 0:02:29.9]} 18... exf5 {[%clk 0:02:36.7]} 19. Rb1 {[%clk 0:02:23.8]}
19... b6 {[%clk 0:02:37.2]} 20. c5 {[%clk 0:02:16.1]} 20... bxc5 {[%clk
0:02:33]} 21. Bxc5 {[%clk 0:02:16.4]} 21... f6 {[%clk 0:02:33.6]} 22. Ba6 {[%clk
0:02:10]} 22... Rc7 {[%clk 0:02:27.5]} 23. d5 {[%clk 0:01:57.7]} 23... Ne5
{[%clk 0:02:24]} 24. Rb8+ {[%clk 0:01:56.7]} 24... Kf7 {[%clk 0:02:22.2]} 25.
Rxh8 {[%clk 0:01:55.3]} 25... Rxc5 {[%clk 0:02:23.1]} 26. c4 {[%clk 0:01:39.3]}
26... Nxc4 {[%clk 0:02:11.2]} 27. Bxc4 {[%clk 0:01:34.1]} 27... Rxc4 {[%clk
0:02:12.2]} 28. Rh7+ {[%clk 0:01:34.3]} 28... Kg6 {[%clk 0:02:10.4]} 29. R1xh5
{[%clk 0:01:31.7]} 29... Bb5 {[%clk 0:02:03.4]} 30. R5h6+ {[%clk 0:01:14.9]}
30... Kg5 {[%clk 0:02:03.5]} 31. Rh5+ {[%clk 0:01:09.2]} 31... Kg6 {[%clk
0:02:04.5]} 32. R7h6+ {[%clk 0:01:08.4]} 32... Kg7 {[%clk 0:02:05.7]} 33. Kd2
{[%clk 0:01:02.5]} 33... Rd4+ {[%clk 0:02:05.4]} 34. Kc3 {[%clk 0:01:01.8]}
34... Rxd5 {[%clk 0:02:06.7]} 35. Rh8 {[%clk 0:01:02.7]} 35... Re5 {[%clk
0:02:00.8]} 36. R5h7+ {[%clk 0:01:01.4]} 36... Kg6 {[%clk 0:02:01.9]} 37. Rxa7
{[%clk 0:01:00.8]} 37... Re2 {[%clk 0:02:01.3]} 38. g3 {[%clk 0:01:00.4]} 38...
Rxf2 {[%clk 0:01:59.2]} 39. Rg8+ {[%clk 0:01:01.2]} 39... Kh6 {[%clk 0:02:00.2]}
40. Rh8+ {[%clk 0:00:55.9]} 40... Kg6 {[%clk 0:02:01]} 41. Rg8+ {[%clk
0:00:56.5]} 41... Kh6 {[%clk 0:02:02.2]} 42. Kb4 {[%clk 0:00:55.8]} 42... Bd3
{[%clk 0:01:59.1]} 43. Rf7 {[%clk 0:00:55.2]} 43... f4 {[%clk 0:01:54.3]} 44.
Rxf6+ {[%clk 0:00:55.1]} 44... Kh7 {[%clk 0:01:55.5]} 45. Rxg4 {[%clk
0:00:55.4]} 45... fxg3 {[%clk 0:01:53.6]} 46. Rd6 {[%clk 0:00:53.2]} 46... Rf3
{[%clk 0:01:40.8]} 47. Rd5 {[%clk 0:00:43.7]} 47... Bg6 {[%clk 0:01:38.6]} 48.
Rdg5 {[%clk 0:00:43.8]} 48... Kh6 {[%clk 0:01:25.1]} 49. Rxg6+ {[%clk
0:00:43.6]} 49... Kh5 {[%clk 0:01:25.7]} 50. Rxg3 {[%clk 0:00:44.8]} 50... Rf4+
{[%clk 0:01:26.5]} 1-0

[Event "*** Titled Tuesday Blitz"]
[Site "Chess.com"]
[Date "2019.07.02"]
[Round "10"]
[White "checkmatequen"]
[Black "Maili15"]
[Result "1-0"]
[WhiteElo "2223"]
[BlackElo "2245"]
[TimeControl "180+2"]
[EndTime "15:13:37 PDT"]
[Termination "checkmatequen won by checkmate"]

1. e4 {[%clk 0:03:01.9]} 1... c5 {[%clk 0:03:00.8]} 2. Nf3 {[%clk 0:03:02.3]}
2... d6 {[%clk 0:03:02.3]} 3. d4 {[%clk 0:03:03.9]} 3... cxd4 {[%clk 0:03:03.9]}
4. Nxd4 {[%clk 0:03:05.8]} 4... Nf6 {[%clk 0:03:05.1]} 5. Nc3 {[%clk 0:03:07.4]}
5... a6 {[%clk 0:03:06.3]} 6. Bg5 {[%clk 0:03:08.9]} 6... Nbd7 {[%clk
0:03:07.1]} 7. Bc4 {[%clk 0:03:09.5]} 7... Qc7 {[%clk 0:03:05]} 8. Bb3 {[%clk
0:03:09.1]} 8... h6 {[%clk 0:02:57.6]} 9. Be3 {[%clk 0:03:02.7]} 9... b5 {[%clk
0:02:56.6]} 10. f3 {[%clk 0:02:58.9]} 10... g6 {[%clk 0:02:49.1]} 11. Qd2 {[%clk
0:02:56.4]} 11... Bg7 {[%clk 0:02:49.7]} 12. O-O-O {[%clk 0:02:57.8]} 12... Bb7
{[%clk 0:02:49.4]} 13. h4 {[%clk 0:02:54.5]} 13... Nb6 {[%clk 0:02:36.8]} 14. g4
{[%clk 0:02:37.2]} 14... Nc4 {[%clk 0:02:26.7]} 15. Bxc4 {[%clk 0:02:34.6]}
15... Qxc4 {[%clk 0:02:28.6]} 16. g5 {[%clk 0:02:30.1]} 16... hxg5 {[%clk
0:02:26.2]} 17. hxg5 {[%clk 0:02:32]} 17... Rxh1 {[%clk 0:02:26.6]} 18. Rxh1
{[%clk 0:02:30.6]} 18... Nh5 {[%clk 0:02:14.8]} 19. b3 {[%clk 0:02:25.9]} 19...
Qc7 {[%clk 0:02:10.3]} 20. Nd5 {[%clk 0:02:19.9]} 20... Bxd5 {[%clk 0:02:09.6]}
21. exd5 {[%clk 0:02:17.8]} 21... Ng3 {[%clk 0:01:51.2]} 22. Rh7 {[%clk
0:02:16.4]} 22... Be5 {[%clk 0:01:43.3]} 23. f4 {[%clk 0:02:13.7]} 23... Nf1
{[%clk 0:01:32]} 24. Qd3 {[%clk 0:02:06.4]} 24... Nxe3 {[%clk 0:01:23]} 25. Qxe3
{[%clk 0:02:08.3]} 25... Bxd4 {[%clk 0:01:21.4]} 26. Qxd4 {[%clk 0:02:06.2]}
26... Rc8 {[%clk 0:01:21.7]} 27. Rh8+ {[%clk 0:02:03]} 27... Kd7 {[%clk
0:01:22.8]} 28. Rxc8 {[%clk 0:02:04.9]} 28... Kxc8 {[%clk 0:01:22.5]} 29. Qg7
{[%clk 0:02:04]} 29... Qc5 {[%clk 0:01:09.4]} 30. Qxf7 {[%clk 0:01:46.5]} 30...
Kd8 {[%clk 0:01:05.5]} 31. Qxg6 {[%clk 0:01:42.2]} 31... Qe3+ {[%clk 0:01:06.3]}
32. Kb2 {[%clk 0:01:40.6]} 32... Qd4+ {[%clk 0:01:04.9]} 33. c3 {[%clk
0:01:40.8]} 33... Qd2+ {[%clk 0:01:04.1]} 34. Qc2 {[%clk 0:01:41.4]} 34... Qxf4
{[%clk 0:01:05]} 35. g6 {[%clk 0:01:42.8]} 35... Qg5 {[%clk 0:01:00.6]} 36. Qd3
{[%clk 0:01:28.8]} 36... Kc7 {[%clk 0:00:57.2]} 37. Ka3 {[%clk 0:01:29.8]} 37...
Qc1+ {[%clk 0:00:50.6]} 38. Kb4 {[%clk 0:01:30.6]} 38... Qg1 {[%clk 0:00:27.6]}
39. Qd4 {[%clk 0:01:19.1]} 39... Qxg6 {[%clk 0:00:26]} 40. Ka5 {[%clk
0:01:20.6]} 40... Qc2 {[%clk 0:00:20.6]} 41. Qb6+ {[%clk 0:01:10.4]} 41... Kd7
{[%clk 0:00:21.4]} 42. Kxa6 {[%clk 0:01:08.5]} 42... Qxa2+ {[%clk 0:00:21.7]}
43. Kb7 {[%clk 0:01:09.9]} 43... Qxb3 {[%clk 0:00:21.6]} 44. Qc6+ {[%clk
0:01:09.9]} 44... Kd8 {[%clk 0:00:21.8]} 45. Qc8# {[%clk 0:01:11.8]} 1-0

[Event "*** Titled Tuesday Blitz"]
[Site "Chess.com"]
[Date "2019.07.02"]
[Round "10"]
[White "monalize"]
[Black "Vamostodorecto"]
[Result "1-0"]
[WhiteElo "2337"]
[BlackElo "2379"]
[TimeControl "180+2"]
[EndTime "15:13:39 PDT"]
[Termination "monalize won by resignation"]

1. e4 {[%clk 0:03:01.9]} 1... e5 {[%clk 0:02:56.9]} 2. Nf3 {[%clk 0:03:01.7]}
2... Nc6 {[%clk 0:02:58.3]} 3. Bb5 {[%clk 0:03:02.2]} 3... a6 {[%clk 0:02:58.6]}
4. Ba4 {[%clk 0:03:02.9]} 4... Nf6 {[%clk 0:02:59.7]} 5. Bxc6 {[%clk 0:03:03.9]}
5... dxc6 {[%clk 0:02:59.1]} 6. O-O {[%clk 0:03:01.8]} 6... Bd6 {[%clk
0:03:00.7]} 7. Qe1 {[%clk 0:03:01.5]} 7... c5 {[%clk 0:03:01.2]} 8. d3 {[%clk
0:03:01.1]} 8... Bg4 {[%clk 0:02:58.2]} 9. Nfd2 {[%clk 0:02:59.8]} 9... Nd7
{[%clk 0:02:56.2]} 10. Nc4 {[%clk 0:02:58.6]} 10... O-O {[%clk 0:02:55.8]} 11.
f4 {[%clk 0:02:55.8]} 11... exf4 {[%clk 0:02:53.9]} 12. Bxf4 {[%clk 0:02:45.2]}
12... Bxf4 {[%clk 0:02:55.8]} 13. Rxf4 {[%clk 0:02:44.8]} 13... Be6 {[%clk
0:02:57.7]} 14. Ne3 {[%clk 0:02:38.7]} 14... Ne5 {[%clk 0:02:57.2]} 15. Nc3
{[%clk 0:02:38]} 15... b5 {[%clk 0:02:48.9]} 16. Rd1 {[%clk 0:02:35.4]} 16... b4
{[%clk 0:02:49.3]} 17. Ne2 {[%clk 0:02:34.7]} 17... a5 {[%clk 0:02:46.3]} 18. b3
{[%clk 0:02:10]} 18... a4 {[%clk 0:02:44.8]} 19. Qf2 {[%clk 0:02:10.5]} 19...
axb3 {[%clk 0:02:45]} 20. axb3 {[%clk 0:02:10.6]} 20... Ra2 {[%clk 0:02:39.4]}
21. h3 {[%clk 0:02:10.7]} 21... Nc6 {[%clk 0:02:23.6]} 22. Rf1 {[%clk
0:01:49.5]} 22... Nd4 {[%clk 0:02:23.2]} 23. Nxd4 {[%clk 0:01:49.6]} 23... cxd4
{[%clk 0:02:20.4]} 24. Nf5 {[%clk 0:01:44.5]} 24... c5 {[%clk 0:02:05.4]} 25.
Qd2 {[%clk 0:01:30.3]} 25... Kh8 {[%clk 0:01:32]} 26. Rg4 {[%clk 0:01:25.5]}
26... g6 {[%clk 0:01:21.8]} 27. Qh6 {[%clk 0:01:24]} 27... Bxf5 {[%clk
0:01:16.4]} 28. exf5 {[%clk 0:01:22.4]} 28... Qe7 {[%clk 0:00:57.9]} 29. Kh1
{[%clk 0:01:14]} 29... Rfa8 {[%clk 0:00:37.4]} 30. Rh4 {[%clk 0:01:07.4]} 30...
f6 {[%clk 0:00:32.8]} 31. fxg6 {[%clk 0:01:07.5]} 31... Ra1 {[%clk 0:00:29.5]}
32. Qxh7+ {[%clk 0:01:00.7]} 32... Qxh7 {[%clk 0:00:28.8]} 33. Rxh7+ {[%clk
0:01:01.5]} 33... Kg8 {[%clk 0:00:30.7]} 34. Rxa1 {[%clk 0:00:59.1]} 34... Rxa1+
{[%clk 0:00:30.9]} 35. Kh2 {[%clk 0:01:00]} 35... Rc1 {[%clk 0:00:31.3]} 36. h4
{[%clk 0:01:00.4]} 36... Rxc2 {[%clk 0:00:31.7]} 37. h5 {[%clk 0:01:01.6]} 37...
Rc3 {[%clk 0:00:22.2]} 38. Rc7 {[%clk 0:00:59.4]} 38... Rxd3 {[%clk 0:00:16.2]}
39. h6 {[%clk 0:01:00.1]} 39... Re3 {[%clk 0:00:13.6]} 40. Rc8+ {[%clk
0:00:59.8]} 1-0

[Event "*** Titled Tuesday Blitz"]
[Site "Chess.com"]
[Date "2019.07.02"]
[Round "10"]
[White "dmosesov"]
[Black "chessdjw"]
[Result "0-1"]
[WhiteElo "2526"]
[BlackElo "2717"]
[TimeControl "180+2"]
[EndTime "15:13:51 PDT"]
[Termination "chessdjw won by checkmate"]

1. d4 {[%clk 0:03:01.9]} 1... Nf6 {[%clk 0:03:01]} 2. c4 {[%clk 0:03:03]} 2...
e6 {[%clk 0:03:02.4]} 3. Nf3 {[%clk 0:03:03.7]} 3... d5 {[%clk 0:03:03.4]} 4.
Nc3 {[%clk 0:03:04.7]} 4... Bb4 {[%clk 0:03:05]} 5. Bg5 {[%clk 0:03:04.2]} 5...
h6 {[%clk 0:03:05.9]} 6. Bxf6 {[%clk 0:03:05.1]} 6... Qxf6 {[%clk 0:03:06.2]} 7.
e3 {[%clk 0:03:03.4]} 7... O-O {[%clk 0:03:06.6]} 8. Rc1 {[%clk 0:03:03.4]} 8...
dxc4 {[%clk 0:03:08.1]} 9. Bxc4 {[%clk 0:03:05.3]} 9... c5 {[%clk 0:03:09.5]}
10. O-O {[%clk 0:03:03.3]} 10... cxd4 {[%clk 0:03:10.4]} 11. Ne4 {[%clk
0:03:03.9]} 11... Qe7 {[%clk 0:03:10.1]} 12. a3 {[%clk 0:03:04.3]} 12... Ba5
{[%clk 0:03:09.8]} 13. Qxd4 {[%clk 0:03:05.4]} 13... Rd8 {[%clk 0:03:05.8]} 14.
Qc5 {[%clk 0:03:06.5]} 14... Qxc5 {[%clk 0:02:57.7]} 15. Nxc5 {[%clk 0:03:08.4]}
15... Nd7 {[%clk 0:02:54.2]} 16. Ne4 {[%clk 0:03:00.2]} 16... Kf8 {[%clk
0:02:30.9]} 17. Rfd1 {[%clk 0:02:56.8]} 17... Ke7 {[%clk 0:02:30.7]} 18. b4
{[%clk 0:02:54.1]} 18... Bb6 {[%clk 0:02:29.1]} 19. Bb5 {[%clk 0:02:53.5]} 19...
a6 {[%clk 0:02:20.7]} 20. Ba4 {[%clk 0:02:53.1]} 20... a5 {[%clk 0:01:51.1]} 21.
Nd6 {[%clk 0:02:37]} 21... Nf6 {[%clk 0:01:51.5]} 22. Nc4 {[%clk 0:01:52.4]}
22... Rxd1+ {[%clk 0:01:48.1]} 23. Rxd1 {[%clk 0:01:54.3]} 23... Bc7 {[%clk
0:01:46.1]} 24. b5 {[%clk 0:01:52.2]} 24... Nd7 {[%clk 0:01:29]} 25. Bc2 {[%clk
0:01:45.8]} 25... g5 {[%clk 0:01:09.9]} 26. h3 {[%clk 0:01:28.4]} 26... f6
{[%clk 0:01:04.4]} 27. Nd4 {[%clk 0:01:23.3]} 27... Nb6 {[%clk 0:01:02.1]} 28.
Bb3 {[%clk 0:00:55]} 28... a4 {[%clk 0:01:02.7]} 29. Ba2 {[%clk 0:00:53.1]}
29... Nxc4 {[%clk 0:00:59.5]} 30. Bxc4 {[%clk 0:00:55]} 30... Bd6 {[%clk
0:00:55.5]} 31. Nc2 {[%clk 0:00:43.1]} 31... Bd7 {[%clk 0:00:56.3]} 32. Bd3
{[%clk 0:00:38.6]} 32... Rc8 {[%clk 0:00:54.6]} 33. Be4 {[%clk 0:00:34.6]} 33...
Bxb5 {[%clk 0:00:53.3]} 34. Rb1 {[%clk 0:00:33.5]} 34... Bd7 {[%clk 0:00:28.4]}
35. Rxb7 {[%clk 0:00:31.3]} 35... Rc3 {[%clk 0:00:26.2]} 36. Nd4 {[%clk
0:00:28.7]} 36... Rc1# {[%clk 0:00:20.5]} 0-1

[Event "*** Titled Tuesday Blitz"]
[Site "Chess.com"]
[Date "2019.07.02"]
[Round "10"]
[White "Mbneu"]
[Black "tunadrol"]
[Result "0-1"]
[WhiteElo "2331"]
[BlackElo "2465"]
[TimeControl "180+2"]
[EndTime "15:13:55 PDT"]
[Termination "tunadrol won on time"]

1. d4 {[%clk 0:03:01.9]} 1... Nf6 {[%clk 0:03:00.5]} 2. c4 {[%clk 0:03:02.7]}
2... g6 {[%clk 0:03:01.5]} 3. Nc3 {[%clk 0:03:00.8]} 3... d5 {[%clk 0:03:02.9]}
4. cxd5 {[%clk 0:03:02.6]} 4... Nxd5 {[%clk 0:03:04.4]} 5. g3 {[%clk 0:03:03.9]}
5... Bg7 {[%clk 0:03:04.6]} 6. Bg2 {[%clk 0:03:05.3]} 6... Nxc3 {[%clk
0:03:05.7]} 7. bxc3 {[%clk 0:03:07.2]} 7... O-O {[%clk 0:03:07.2]} 8. e3 {[%clk
0:03:08.5]} 8... c5 {[%clk 0:03:08.6]} 9. Ne2 {[%clk 0:03:09.8]} 9... Nc6 {[%clk
0:03:09.8]} 10. O-O {[%clk 0:03:09.3]} 10... Qa5 {[%clk 0:02:55.2]} 11. a4
{[%clk 0:03:06.9]} 11... Bf5 {[%clk 0:02:52.8]} 12. Ba3 {[%clk 0:03:04.3]} 12...
cxd4 {[%clk 0:02:47.9]} 13. cxd4 {[%clk 0:03:03.3]} 13... Qc7 {[%clk 0:02:26.4]}
14. Rc1 {[%clk 0:03:01.7]} 14... Qd7 {[%clk 0:02:26.9]} 15. Qb3 {[%clk 0:02:49]}
15... Rfe8 {[%clk 0:02:05.2]} 16. Qb5 {[%clk 0:02:38.6]} 16... Rac8 {[%clk
0:01:39.5]} 17. Rc5 {[%clk 0:02:18]} 17... a6 {[%clk 0:00:32.5]} 18. Qb6 {[%clk
0:02:08.2]} 18... Bg4 {[%clk 0:00:30]} 19. Nf4 {[%clk 0:00:57.2]} 19... e5
{[%clk 0:00:29.1]} 20. d5 {[%clk 0:00:54.4]} 20... exf4 {[%clk 0:00:27.5]} 21.
dxc6 {[%clk 0:00:53.9]} 21... bxc6 {[%clk 0:00:28.4]} 22. Bxc6 {[%clk
0:00:38.5]} 22... Qd3 {[%clk 0:00:23.3]} 23. Bxe8 {[%clk 0:00:21.4]} 23... Rxe8
{[%clk 0:00:25.2]} 24. Qb4 {[%clk 0:00:15.4]} 24... Bh3 {[%clk 0:00:20.7]} 25.
Re1 {[%clk 0:00:11.3]} 25... fxe3 {[%clk 0:00:19.5]} 26. fxe3 {[%clk 0:00:11.9]}
26... Bf8 {[%clk 0:00:18.5]} 27. Qc3 {[%clk 0:00:10.6]} 27... Rxe3 {[%clk
0:00:17.2]} 28. Qxd3 {[%clk 0:00:10.5]} 28... Rxd3 {[%clk 0:00:16.6]} 29. Bb4
{[%clk 0:00:04.3]} 29... Rb3 {[%clk 0:00:14.1]} 0-1

[Event "*** Titled Tuesday Blitz"]
[Site "Chess.com"]
[Date "2019.07.02"]
[Round "10"]
[White "ChessWarrior7197"]
[Black "TST2014"]
[Result "1-0"]
[WhiteElo "2826"]
[BlackElo "2590"]
[TimeControl "180+2"]
[EndTime "15:14:13 PDT"]
[Termination "ChessWarrior7197 won by resignation"]

1. e4 {[%clk 0:03:01.9]} 1... c5 {[%clk 0:03:00.7]} 2. Nf3 {[%clk 0:03:01.6]}
2... Nc6 {[%clk 0:03:01.7]} 3. Bb5 {[%clk 0:03:01.2]} 3... g6 {[%clk 0:03:02]}
4. Bxc6 {[%clk 0:03:01.8]} 4... dxc6 {[%clk 0:02:58.5]} 5. d3 {[%clk 0:03:02.8]}
5... Bg7 {[%clk 0:02:59.6]} 6. Nc3 {[%clk 0:03:00.6]} 6... Bg4 {[%clk
0:02:54.5]} 7. Be3 {[%clk 0:02:57.3]} 7... b6 {[%clk 0:02:52.6]} 8. h3 {[%clk
0:02:58]} 8... Bxf3 {[%clk 0:02:53.6]} 9. Qxf3 {[%clk 0:02:59.9]} 9... Nf6
{[%clk 0:02:52.7]} 10. O-O {[%clk 0:02:54.5]} 10... O-O {[%clk 0:02:44.8]} 11.
Qg3 {[%clk 0:02:49.8]} 11... Nd7 {[%clk 0:02:44.8]} 12. f4 {[%clk 0:02:49.8]}
12... Bd4 {[%clk 0:02:43.3]} 13. f5 {[%clk 0:02:44.1]} 13... Qb8 {[%clk
0:02:38.7]} 14. Qf2 {[%clk 0:02:41.5]} 14... Qe5 {[%clk 0:02:30]} 15. Ne2 {[%clk
0:02:37.2]} 15... Bxe3 {[%clk 0:02:09.9]} 16. Qxe3 {[%clk 0:02:39.1]} 16... Qxb2
{[%clk 0:02:07.2]} 17. c3 {[%clk 0:02:38.9]} 17... Nf6 {[%clk 0:01:52]} 18. a4
{[%clk 0:02:31.4]} 18... Rad8 {[%clk 0:01:44.2]} 19. fxg6 {[%clk 0:02:19.8]}
19... hxg6 {[%clk 0:01:43.1]} 20. Rac1 {[%clk 0:02:05.7]} 20... Kg7 {[%clk
0:01:30.2]} 21. Ng3 {[%clk 0:02:02.7]} 21... Nh7 {[%clk 0:00:58.4]} 22. h4
{[%clk 0:01:55.1]} 22... Rd6 {[%clk 0:00:51.2]} 23. h5 {[%clk 0:01:53.8]} 23...
Rf6 {[%clk 0:00:51.1]} 24. Rxf6 {[%clk 0:01:43.2]} 24... exf6 {[%clk 0:00:50.4]}
25. Ne2 {[%clk 0:01:32.9]} 25... Ng5 {[%clk 0:00:46.1]} 26. Rf1 {[%clk
0:01:30.7]} 26... Re8 {[%clk 0:00:38.2]} 27. h6+ {[%clk 0:01:27.4]} 27... Kxh6
{[%clk 0:00:30.9]} 28. Rxf6 {[%clk 0:01:27.7]} 28... Qb1+ {[%clk 0:00:27.5]} 29.
Rf1 {[%clk 0:01:27.4]} 29... Qa2 {[%clk 0:00:27.2]} 30. Kf2 {[%clk 0:01:18.7]}
30... f6 {[%clk 0:00:24.3]} 31. Kg3 {[%clk 0:01:06.9]} 31... Qe6 {[%clk
0:00:22.9]} 32. Kf2 {[%clk 0:00:55.5]} 32... c4 {[%clk 0:00:23.3]} 33. Nd4
{[%clk 0:00:52.7]} 33... Qe5 {[%clk 0:00:22]} 34. Nf3 {[%clk 0:00:42.9]} 34...
Qxc3 {[%clk 0:00:22.6]} 35. Nxg5 {[%clk 0:00:31.3]} 35... fxg5 {[%clk
0:00:21.4]} 36. Qh3+ {[%clk 0:00:32.4]} 36... Kg7 {[%clk 0:00:20.7]} 37. Qd7+
{[%clk 0:00:33.7]} 37... Kf6 {[%clk 0:00:14.9]} 38. Kg1+ {[%clk 0:00:31.4]}
38... Ke5 {[%clk 0:00:15.4]} 39. Qg7+ {[%clk 0:00:31.1]} 1-0